[Event "2nd Kalyan Dombivali 2019"]
[Site "Kalyan"]
[Date "2019.02.02"]
[Round "8"]
[White "Akshit Jha"]
[Black "Rajveer Pinkesh Nahar"]
[Result "1-0"]
[ECO "C50"]
[WhiteElo "1604"]
[BlackElo "1389"]
[Annotator "NA RC"]
[PlyCount "55"]
[EventDate "2019.01.28"]
[EventType "swiss"]
[EventRounds "10"]
[EventCountry "IND"]
[SourceTitle "playchess.com"]
[Source "ChessBase"]
[SourceQuality "1"]
[TimeControl "5400+30"]

1. e4 {[%emt 0:01:01]} e5 {[%emt 0:03:23]} 2. Nf3 {[%emt 0:00:08]} Nc6 {[%emt 0:00:06]} 3. Bc4 {[%emt 0:00:06]} Nf6 {[%emt 0:00:12]} 4. d3 {[%emt 0:00:07]} Bc5 {[%emt 0:00:06]} 5. c3 {[%emt 0:00:06]} d6 {[%emt 0:00:23]} 6. Bb3 {[%emt 0:00:04]} a6 {[%emt 0:00:04]} 7. h3 {[%emt 0:00:12]} Ba7 {[%emt 0:00:33]} 8. Nbd2 {[%emt 0:00:04]} O-O {[%emt 0:00:13]} 9. Nf1 {[%emt 0:00:05]} d5 {[%emt 0:00:17]} 10. Qe2 {[%emt 0:00:05]} Be6 {[%emt 0:00:30]} 11. Bg5 {[%emt 0:01:21]} dxe4 {[%emt 0:01:04]} 12. dxe4 {[%emt 0:00:06]} Bxb3 {[%emt 0:00:12]} 13. axb3 {[%emt 0:00:04]} Qe7 {[%emt 0:01:37]} 14. Ng3 {[%emt 0:00:34]} Qe6 {[%emt 0:01:05]} 15. b4 {[%emt 0:00:15]} h6 {[%emt 0:00:18]} 16. Be3 {[%emt 0:02:22]} Bxe3 {[%emt 0:02:07]} 17. fxe3 {[%emt 0:02:25]} Rfe8 {[%emt 0:01:13]} 18. Nh4 {[%emt 0:01:10]} a5 {[%emt 0:00:42]} 19. b5 {[%emt 0:01:09]} Nd8 {[%emt 0:01:33]} 20. O-O {[%emt 0:01:34]} b6 {[%emt 0:04:15]} 21. Nhf5 {[%emt 0:04:06]} Nb7 {[%emt 0:00:27]} 22. Rf2 {[%emt 0:02:07]} Nc5 {[%emt 0:00:13]} 23. Raf1 Ncxe4 {[%emt 0:13:03]} 24. Nxe4 {[%emt 0:00:37]} Nxe4 {[%emt 0:00:15]} 25. Qg4 {[%emt 0:00:06]} g6 {[%emt 0:06:39]} 26. Nxh6+ {[%emt 0:00:31]} Kh7 {[%emt 0:09:06]} 27. Rxf7+ {[%emt 0:00:16]} Kxh6 {[%emt 0:00:39]} 28. Qh4# {[%emt 0:00:06]} 1-0

[Event "2nd Kalyan Dombivali 2019"]
[Site "Kalyan"]
[Date "2019.02.02"]
[Round "8"]
[White "Govind Prabhu Mah"]
[Black "Arvind, Ramnath Iyer"]
[Result "1/2-1/2"]
[ECO "C53"]
[WhiteElo "1601"]
[BlackElo "1567"]
[Annotator "NA RC"]
[PlyCount "167"]
[EventDate "2019.01.28"]
[EventType "swiss"]
[EventRounds "10"]
[EventCountry "IND"]
[SourceTitle "playchess.com"]
[Source "ChessBase"]
[SourceQuality "1"]
[TimeControl "5400+30"]

1. e4 {[%emt 0:08:45]} e5 {[%emt 0:01:10]} 2. Nf3 {[%emt 0:00:23]} Nc6 {[%emt 0:00:51]} 3. Bc4 {[%emt 0:02:52]} Bc5 {[%emt 0:03:42]} 4. c3 {[%emt 0:04:01]} d6 {[%emt 0:02:57]} 5. d3 {[%emt 0:09:32]} h6 {[%emt 0:02:51]} 6. Nbd2 {[%emt 0:00:36]} Nf6 {[%emt 0:01:17]} 7. Qe2 {[%emt 0:01:06]} O-O {[%emt 0:04:18]} 8. h3 {[%emt 0:00:33]} Be6 {[%emt 0:00:40]} 9. Bb3 {[%emt 0:00:33]} Bxb3 {[%emt 0:06:53]} 10. axb3 {[%emt 0:02:21]} Qd7 {[%emt 0:01:19]} 11. b4 {[%emt 0:00:48]} Bb6 {[%emt 0:00:07]} 12. Nc4 {[%emt 0:00:56]} Rfe8 {[%emt 0:03:18]} 13. O-O {[%emt 0:06:36]} Rad8 {[%emt 0:03:12]} 14. Re1 {[%emt 0:10:30]} d5 {[%emt 0:11:22]} 15. b5 {[%emt 0:03:21]} dxc4 {[%emt 0:04:20]} 16. bxc6 {[%emt 0:00:09]} Qxd3 {[%emt 0:01:37]} 17. Qxd3 {[%emt 0:01:54]} cxd3 {[%emt 0:00:43]} 18. cxb7 {[%emt 0:00:11]} Rb8 {[%emt 0:00:19]} 19. Ra4 {[%emt 0:04:01]} Nd7 {[%emt 0:08:44]} 20. b4 {[%emt 0:02:14]} c6 {[%emt 0:01:45]} 21. c4 {[%emt 0:03:32]} c5 {[%emt 0:04:52]} 22. b5 {[%emt 0:00:56]} Rxb7 {[%emt 0:01:07]} 23. Ra3 {[%emt 0:00:45]} Re7 {[%emt 0:02:03]} 24. Rxd3 {[%emt 0:01:07]} Ba5 {[%emt 0:00:44]} 25. Re2 {[%emt 0:02:00]} Nb6 {[%emt 0:01:24]} 26. Rc2 {[%emt 0:03:07]} f6 {[%emt 0:02:03]} 27. Ba3 {[%emt 0:02:05]} Rbc7 {[%emt 0:03:33]} 28. g4 {[%emt 0:02:09]} Kf7 {[%emt 0:02:45]} 29. Kf1 {[%emt 0:00:41]} Nd7 {[%emt 0:00:49]} 30. Rd5 {[%emt 0:03:44]} Bb6 {[%emt 0:00:02]} 31. Bc1 {[%emt 0:03:24]} g5 {[%emt 0:01:12]} 32. Be3 {[%emt 0:00:09]} Nf8 {[%emt 0:01:13]} 33. Nd2 {[%emt 0:00:23]} Ne6 {[%emt 0:00:30]} 34. Nb3 {[%emt 0:00:57]} Nd4 {[%emt 0:00:32]} 35. Bxd4 {[%emt 0:00:22]} exd4 {[%emt 0:00:18]} 36. f3 {[%emt 0:00:26]} Re5 {[%emt 0:01:08]} 37. Rxe5 {[%emt 0:02:24]} fxe5 {[%emt 0:00:09]} 38. Nc1 {[%emt 0:00:27]} Ba5 {[%emt 0:00:49]} 39. Nd3 {[%emt 0:00:14]} Kf6 {[%emt 0:00:46]} 40. Ra2 {[%emt 0:00:15]} Bb6 {[%emt 0:00:14]} 41. Ra6 {[%emt 0:00:23]} Ke6 {[%emt 0:01:13]} 42. Kg2 {[%emt 0:00:50]} Kd6 {[%emt 0:00:13]} 43. Ra1 {[%emt 0:03:42]} Rh7 {[%emt 0:01:13]} 44. h4 {[%emt 0:01:45]} Bd8 {[%emt 0:01:02]} 45. hxg5 {[%emt 0:02:31]} hxg5 {[%emt 0:00:08]} 46. Nf2 {[%emt 0:00:46]} Bb6 {[%emt 0:00:35]} 47. Nh1 {[%emt 0:00:38]} Ke6 {[%emt 0:01:03]} 48. Ng3 {[%emt 0:00:51]} Kf6 {[%emt 0:00:42]} 49. Nf5 {[%emt 0:01:27]} Ke6 {[%emt 0:00:25]} 50. Rd1 {[%emt 0:03:03]} Rh8 {[%emt 0:00:29]} 51. Ng3 {[%emt 0:01:26]} Rh7 {[%emt 0:00:29]} 52. Nh1 {[%emt 0:00:09]} Kf6 {[%emt 0:00:26]} 53. Nf2 {[%emt 0:00:05]} Ke6 {[%emt 0:00:10]} 54. Ra1 {[%emt 0:00:50]} Rh8 {[%emt 0:00:21]} 55. Ra6 {[%emt 0:00:18]} Rh7 {[%emt 0:00:18]} 56. Nd3 {[%emt 0:00:25]} Kd6 {[%emt 0:00:15]} 57. Nb2 {[%emt 0:01:19]} Rb7 {[%emt 0:00:49]} 58. Kg3 {[%emt 0:00:42]} Rb8 {[%emt 0:01:22]} 59. Na4 {[%emt 0:01:22]} Rb7 {[%emt 0:01:14]} 60. Kf2 {[%emt 0:00:25]} Kd7 {[%emt 0:01:07]} 61. Ke2 {[%emt 0:00:20]} Kc8 {[%emt 0:00:56]} 62. Nb2 {[%emt 0:01:26]} Rh7 {[%emt 0:02:00]} 63. Nd3 {[%emt 0:00:08]} Rh2+ {[%emt 0:01:42]} 64. Ke1 {[%emt 0:00:14]} Rh1+ {[%emt 0:01:04]} 65. Ke2 {[%emt 0:00:37]} Rh2+ {[%emt 0:00:21]} 66. Kd1 {[%emt 0:00:23]} Rh1+ {[%emt 0:00:42]} 67. Kc2 {[%emt 0:00:12]} Rh2+ {[%emt 0:00:18]} 68. Kb3 {[%emt 0:00:32]} Rh3 {[%emt 0:00:15]} 69. Nxe5 {[%emt 0:00:22]} Kb7 {[%emt 0:00:42]} 70. Kc2 {[%emt 0:01:30]} Rh2+ {[%emt 0:01:07]} 71. Kd3 {[%emt 0:00:13]} Rf2 {[%emt 0:00:39]} 72. Ra1 {[%emt 0:00:57]} Bc7 {[%emt 0:00:29]} 73. Nd7 {[%emt 0:01:20]} Rxf3+ {[%emt 0:00:44]} 74. Kd2 {[%emt 0:00:01]} Bb6 {[%emt 0:01:03]} 75. Rh1 {[%emt 0:01:01]} Rf4 {[%emt 0:01:31]} 76. Rh7 {[%emt 0:00:05]} Kc8 {[%emt 0:00:19]} 77. Ne5 {[%emt 0:01:29]} Rxe4 {[%emt 0:00:46]} 78. Rh8+ {[%emt 0:00:19]} Kc7 {[%emt 0:00:36]} 79. Rh7+ {[%emt 0:00:09]} Kb8 {[%emt 0:01:03]} 80. Rh8+ {[%emt 0:00:21]} Kc7 {[%emt 0:00:12]} 81. Rh7+ {[%emt 0:00:04]} Kb8 {[%emt 0:00:19]} 82. Rh8+ {[%emt 0:00:03]} Kb7 {[%emt 0:03:01]} 83. Rh7+ {[%emt 0:00:25]} Kc8 {[%emt 0:00:45]} 84. Rh8+ {[%emt 0:00:00] Kd8 Rh7 Kc8 Nf7 [%clk 0:06:21] Kd8} 1/2-1/2

[Event "2nd Kalyan Dombivali 2019"]
[Site "Kalyan"]
[Date "2019.02.02"]
[Round "8"]
[White "Pingale Shivraj"]
[Black "Bagwe Suneet"]
[Result "0-1"]
[ECO "B43"]
[WhiteElo "1580"]
[BlackElo "1305"]
[Annotator "NA RC"]
[PlyCount "54"]
[EventDate "2019.01.28"]
[EventType "swiss"]
[EventRounds "10"]
[EventCountry "IND"]
[SourceTitle "playchess.com"]
[Source "ChessBase"]
[SourceQuality "1"]
[TimeControl "5400+30"]

1. e4 {[%emt 0:00:00]} c5 {[%emt 0:00:00]} 2. Nf3 {[%emt 0:00:00]} e6 {[%emt 0:00:00]} 3. d4 {[%emt 0:00:00]} cxd4 {[%emt 0:00:00]} 4. Nxd4 {[%emt 0:00:00]} a6 {[%emt 0:00:00]} 5. Nc3 {[%emt 0:00:11]} Qc7 {[%emt 0:00:00]} 6. Bd3 {[%emt 0:00:43]} Nf6 {[%emt 0:00:12]} 7. O-O {[%emt 0:00:07]} Bc5 {[%emt 0:00:32]} 8. Nb3 {[%emt 0:00:51]} Be7 {[%emt 0:00:12]} 9. Be3 {[%emt 0:01:04]} b5 {[%emt 0:03:36]} 10. f4 {[%emt 0:02:39]} d6 {[%emt 0:00:27]} 11. e5 {[%emt 0:01:45]} Nfd7 {[%emt 0:23:35]} 12. exd6 {[%emt 0:00:49]} Bxd6 {[%emt 0:00:53]} 13. Be4 {[%emt 0:00:41]} Nc6 {[%emt 0:06:17]} 14. Nd4 {[%emt 0:00:28]} Nxd4 {[%emt 0:01:24]} 15. Bxa8 {[%emt 0:00:13]} Nf5 {[%emt 0:00:22]} 16. Bd2 {[%emt 0:01:36]} Bc5+ {[%emt 0:05:19]} 17. Kh1 {[%emt 0:01:13]} Nb6 {[%emt 0:00:29]} 18. Be4 {[%emt 0:02:35]} O-O {[%emt 0:04:26]} 19. Bxf5 {[%emt 0:05:38]} exf5 {[%emt 0:00:07]} 20. Qf3 {[%emt 0:05:42]} Bb7 {[%emt 0:00:45]} 21. Qg3 {[%emt 0:02:45]} Nc4 {[%emt 0:04:24]} 22. Bc1 {[%emt 0:02:04]} Re8 {[%emt 0:14:03]} 23. h3 {[%emt 0:32:49]} Qc6 {[%emt 0:07:03]} 24. Nd1 {[%emt 0:05:27]} Re6 {[%emt 0:17:38]} 25. Nf2 {[%emt 0:07:58]} Rg6 {[%emt 0:02:37]} 26. Ng4 {[%emt 0:00:12]} fxg4 {[%emt 0:00:41]} 27. f5 {[%emt 0:00:28]} gxh3 {[%emt 0:04:14]} 0-1

[Event "2nd Kalyan Dombivali 2019"]
[Site "Kalyan"]
[Date "2019.02.02"]
[Round "8"]
[White "Sarode Om"]
[Black "Javheri, Jaydev"]
[Result "0-1"]
[ECO "B63"]
[WhiteElo "1427"]
[BlackElo "1675"]
[Annotator "NA RC"]
[PlyCount "106"]
[EventDate "2019.01.28"]
[EventType "swiss"]
[EventRounds "10"]
[EventCountry "IND"]
[SourceTitle "playchess.com"]
[Source "ChessBase"]
[SourceQuality "1"]
[TimeControl "5400+30"]

1. e4 {[%emt 0:00:44]} c5 {[%emt 0:00:00]} 2. Nf3 {[%emt 0:00:14]} d6 {[%emt 0:00:00]} 3. d4 {[%emt 0:00:05]} cxd4 {[%emt 0:00:00]} 4. Nxd4 {[%emt 0:00:05]} Nf6 {[%emt 0:00:00]} 5. Nc3 {[%emt 0:00:10]} Nc6 {[%emt 0:00:00]} 6. Bg5 {[%emt 0:00:56]} e6 {[%emt 0:00:06]} 7. Qd2 {[%emt 0:00:51]} Be7 {[%emt 0:03:26]} 8. f3 {[%emt 0:00:53]} h6 {[%emt 0:00:32]} 9. Be3 {[%emt 0:00:33]} a6 {[%emt 0:04:19]} 10. Nxc6 {[%emt 0:01:06]} bxc6 {[%emt 0:00:10]} 11. O-O-O {[%emt 0:00:24]} Qa5 {[%emt 0:03:22]} 12. Bc4 {[%emt 0:04:12]} d5 {[%emt 0:02:14]} 13. exd5 {[%emt 0:00:20]} cxd5 {[%emt 0:00:13]} 14. Bb3 {[%emt 0:00:12]} Bd7 {[%emt 0:02:46]} 15. Kb1 {[%emt 0:00:08]} Qc7 {[%emt 0:04:38]} 16. Na4 {[%emt 0:09:19]} a5 {[%emt 0:12:19]} 17. Nb6 {[%emt 0:00:30]} Ra6 {[%emt 0:03:01]} 18. Nxd7 {[%emt 0:02:22]} Nxd7 {[%emt 0:00:14]} 19. Qd3 {[%emt 0:00:36]} Qb7 {[%emt 0:01:31]} 20. Ba4 {[%emt 0:00:59]} Ra8 {[%emt 0:01:19]} 21. Qb5 {[%emt 0:02:28]} Rb8 {[%emt 0:08:19]} 22. Qxb7 {[%emt 0:01:23]} Rxb7 {[%emt 0:00:44]} 23. Bd4 {[%emt 0:02:34]} O-O {[%emt 0:00:59]} 24. Bc3 {[%emt 0:00:51]} Nc5 {[%emt 0:00:31]} 25. Bc6 {[%emt 0:01:25]} Rb6 {[%emt 0:00:35]} 26. Bxd5 {[%emt 0:00:03]} exd5 {[%emt 0:00:26]} 27. Rxd5 {[%emt 0:00:38]} Na4 {[%emt 0:00:21]} 28. Bd4 {[%emt 0:00:08]} Rb7 {[%emt 0:01:33]} 29. Rxa5 {[%emt 0:00:18]} Nxb2 {[%emt 0:00:51]} 30. Bxb2 {[%emt 0:03:41]} Rfb8 {[%emt 0:00:21]} 31. Rd1 {[%emt 0:24:32]} Rxb2+ {[%emt 0:00:11]} 32. Kc1 {[%emt 0:00:03]} Rb1+ {[%emt 0:00:13]} 33. Kd2 {[%emt 0:00:46]} Rd8+ {[%emt 0:00:05]} 34. Ke2 {[%emt 0:00:20]} Rbxd1 {[%emt 0:00:05]} 35. Ra8 {[%emt 0:01:49]} R1d2+ {[%emt 0:00:23]} 36. Ke1 {[%emt 0:00:14]} Rxa8 {[%emt 0:00:16]} 37. Kxd2 {[%emt 0:00:09]} Rxa2 {[%emt 0:00:03]} 38. Kd3 {[%emt 0:00:06]} Ra3+ {[%emt 0:00:19]} 39. Kd4 {[%emt 0:00:03]} Bf6+ {[%emt 0:00:07]} 40. Kd5 {[%emt 0:00:06]} Rc3 {[%emt 0:00:07]} 41. Kd6 {[%emt 0:00:03]} Rxc2 {[%emt 0:00:09]} 42. Kd7 {[%emt 0:00:09]} Rxg2 {[%emt 0:00:11]} 43. f4 {[%emt 0:00:05]} Rxh2 {[%emt 0:00:08]} 44. f5 {[%emt 0:00:04]} Re2 45. Kc6 h5 46. Kd5 h4 {[%emt 0:02:46]} 47. Kc4 {[%emt 0:01:17]} h3 {[%emt 0:00:01]} 48. Kd3 {[%emt 0:00:06]} Re5 {[%emt 0:00:07]} 49. Kd2 {[%emt 0:00:06]} h2 {[%emt 0:00:03]} 50. Kc2 {[%emt 0:00:08]} h1=Q 51. Kb3 {[%emt 0:00:07]} Qc6 {[%emt 0:00:32]} 52. Kb2 {[%emt 0:00:04]} Rb5+ {[%emt 0:00:05]} 53. Ka2 {[%emt 0:00:04]} Qa6# {[%emt 0:00:05]} 0-1

[Event "2nd Kalyan Dombivali 2019"]
[Site "Kalyan"]
[Date "2019.02.02"]
[Round "8"]
[White "Choudki Khushi"]
[Black "Saranya, Y."]
[Result "0-1"]
[ECO "B34"]
[WhiteElo "1383"]
[BlackElo "1977"]
[Annotator "NA RC"]
[PlyCount "106"]
[EventDate "2019.01.28"]
[EventType "swiss"]
[EventRounds "10"]
[EventCountry "IND"]
[SourceTitle "playchess.com"]
[Source "ChessBase"]
[SourceQuality "1"]
[TimeControl "5400+30"]

{[%evp 8,106,11,32767,32767,32767,32767,10,-3,0,32767,-11,-8,-113,-112,-120,32767,32767,32767,32767,-92,-86,-95,-100,-95,-92,-92,-95,-96,-95,-97,-107,-101,-112,-115,-122,-131,-106,-117,32767,-128,-165,-164,-180,-165,-168,-123,-281,-288,-347,32767,32767,32767,32767,32767,32767,-509,-557,-664,-543,-578,-665,-666,-500,-656,-563,-658,-618,-743,-747,-810,-677,-829,-739,32767,32767,32767,-660,32767,-1204,-1829,-1678,-5122,-5173,-12070,-29981,-29974,-29988,-29988,-29995,-29991,-29992,-29992,32767,32767,32767,32767,-29994,-29995,-29995,-1377]} 1. e4 {[%emt 0:00:00]} c5 {[%emt 0:15:15]} 2. Nf3 {[%emt 0:00:18]} Nc6 {[%emt 0:00:05]} 3. d4 {[%emt 0:00:18]} cxd4 {[%emt 0:00:02]} 4. Nxd4 {[%emt 0:00:07]} g6 {[%emt 0:00:02]} (4... Nf6 5. Nc3 g6 6. Be3 {0-1 (23) Reviczki,R (1931)-Kelemen,D (2064) Zalakaros 2018}) 5. Nc3 {[%emt 0:04:27]} Bg7 {[%emt 0:00:11]} 6. Be3 {[%emt 0:00:10]} Nf6 {[%emt 0:00:05]} 7. f3 $146 {[%emt 0:00:07]} ({Predecessor:} 7. Bc4 O-O {½-½ (41) Saatdjian,T-Ip,V (1760) France 2001}) 7... O-O {[%emt 0:00:19]} 8. Bc4 {[%emt 0:00:03]} Qb6 {[%emt 0:01:29]} 9. Bb3 {[%emt 0:03:27]} Nxe4 {[%emt 0:05:28]} 10. Nxe4 {[%emt 0:05:59]} (10. Nd5 $11 {remains equal.} Qa5+ 11. c3) 10... Bxd4 {[%emt 0:01:34] B35: Sicilian: Accelerated Dragon with 5 Nc3: main line} 11. Bxd4 {[%emt 0:01:53]} Qxd4 {[%emt 0:01:51]} (11... Nxd4 12. Qd3 Nxb3 13. axb3 Rd8 14. Ra4 d5 15. Rd4 Bf5 16. Rxd5 Rxd5 17. Qxd5 Rd8 18. Qc5 Qxc5 19. Nxc5 Bxc2 20. O-O b6 21. Na4 Rd1 22. Nc3 Rxf1+ 23. Kxf1 Bxb3 {0-1 (23) Reviczki,R (1931)-Kelemen,D (2064) Zalakaros 2018}) 12. Qxd4 {[%emt 0:00:29]} Nxd4 {[%emt 0:00:06]} 13. O-O-O {[%emt 0:00:59]} Nxb3+ {[%emt 0:01:23]} 14. axb3 {[%emt 0:00:08]} d6 {[%emt 0:02:53]} 15. Nc3 {[%emt 0:05:10]} Be6 {[%emt 0:02:31]} 16. Nd5 {[%emt 0:02:06]} Bxd5 {[%emt 0:01:40]} 17. Rxd5 {[%emt 0:00:25]} Rfc8 {[%emt 0:00:58]} ({Predecessor:} 17... Rac8 18. Re1 {½-½ (41) Saatdjian,T-Ip,V (1760) France 2001}) 18. Kd2 {[%emt 0:04:20]} Rc6 {[%emt 0:02:49]} 19. Rd3 {[%emt 0:02:31]} Rac8 {[%emt 0:00:31]} 20. Rc3 {[%emt 0:00:18]} e5 {[%emt 0:03:33]} 21. Rxc6 {[%emt 0:01:50]} Rxc6 {[%emt 0:00:51]} 22. c4 {[%emt 0:00:17]} Kf8 {[%emt 0:03:00]} 23. Kd3 {[%emt 0:01:05]} Ke7 {[%emt 0:00:23]} 24. Re1 {[%emt 0:01:29]} Ke6 {[%emt 0:00:41]} 25. f4 {[%emt 0:01:45]} f5 {[%emt 0:00:52]} 26. b4 {[%emt 0:00:53]} h6 {[%emt 0:04:55]} 27. c5 {[%emt 0:01:23]} (27. b5 $17 Rc7 28. b4) 27... e4+ {[%emt 0:06:28]} 28. Kd4 {[%emt 0:01:34]} b6 {[%emt 0:01:44]} 29. cxd6 {[%emt 0:05:00]} Rxd6+ {[%emt 0:04:01]} 30. Kc3 {[%emt 0:00:07]} g5 {[%emt 0:00:11]} 31. g3 {[%emt 0:00:36]} Rd3+ {[%emt 0:00:50]} 32. Kc2 {[%emt 0:00:06]} gxf4 {[%emt 0:00:44]} 33. gxf4 {[%emt 0:00:06]} Rh3 {[%emt 0:00:30]} 34. Re2 {[%emt 0:00:14]} Rh4 {[%emt 0:00:39]} 35. Rf2 {[%emt 0:00:11]} Kd5 {[%emt 0:00:23]} 36. Rd2+ {[%emt 0:01:03]} Kc4 {[%emt 0:00:14]} 37. b3+ {[%emt 0:00:34]} Kxb4 {[%emt 0:00:22]} 38. Rd4+ {[%emt 0:00:47]} Kc5 {[%emt 0:00:10]} 39. Rd7 {[%emt 0:00:41]} Rxh2+ {[%emt 0:00:32]} 40. Kc3 {[%emt 0:00:13]} Rh3+ {[%emt 0:00:07]} 41. Kc2 {[%emt 0:00:06]} Rf3 {[%emt 0:00:24]} 42. Rxa7 {[%emt 0:00:34]} Rxf4 {[%emt 0:00:05]} 43. Rf7 {[%emt 0:00:18]} Kd4 {[%emt 0:00:45]} 44. Rf6 {[%emt 0:00:58]} Rf2+ {[%emt 0:00:05]} 45. Kd1 {[%emt 0:00:56]} e3 {[%emt 0:01:34]} (45... f4 $142 46. Ke1 Rb2 47. Rc6 f3 48. Kf1 e3 49. Rc4+ Ke5 50. Kg1 f2+ 51. Kg2 Rb1 52. Kg3 f1=Q 53. Rc2 e2 54. Rd2 Rxb3+ 55. Rd3 Rxd3+ 56. Kh4 Qh3#) 46. Rxh6 {[%emt 0:01:06]} f4 47. Rxb6 {[%emt 0:04:58]} f3 {[%emt 0:01:23]} 48. Ke1 {[%emt 0:02:09]} Rb2 {[%emt 0:00:16]} 49. Rd6+ {[%emt 0:00:55]} Ke5 {[%emt 0:00:15]} 50. Rd3 {[%emt 0:02:05]} Rb1+ {[%emt 0:00:05]} 51. Rd1 {[%emt 0:00:08]} f2+ {[%emt 0:00:04]} 52. Ke2 {[%emt 0:01:02]} Rxd1 {[%emt 0:00:05]} 53. Kxd1 {[%emt 0:00:14]} f1=Q+ {[%emt 0:00:04]} 0-1

[Event "2nd Kalyan Dombivali 2019"]
[Site "Kalyan"]
[Date "2019.02.02"]
[Round "8"]
[White "Isha Pritam Inamdar"]
[Black "Ankur Mahesh Gokhale"]
[Result "0-1"]
[ECO "B78"]
[WhiteElo "1380"]
[BlackElo "1628"]
[Annotator "NA RC"]
[PlyCount "152"]
[EventDate "2019.01.28"]
[EventType "swiss"]
[EventRounds "10"]
[EventCountry "IND"]
[SourceTitle "playchess.com"]
[Source "ChessBase"]
[SourceQuality "1"]
[TimeControl "5400+30"]

1. e4 {[%emt 0:00:00]} c5 {[%emt 0:00:00]} 2. Nf3 {[%emt 0:00:00]} d6 3. d4 {[%emt 0:00:00]} cxd4 {[%emt 0:00:03]} 4. Nxd4 {[%emt 0:00:00]} Nf6 {[%emt 0:00:06]} 5. Nc3 {[%emt 0:00:00]} g6 {[%emt 0:00:08]} 6. Be3 {[%emt 0:00:00]} Bg7 {[%emt 0:00:06]} 7. f3 {[%emt 0:00:01]} O-O {[%emt 0:00:15]} 8. Bc4 {[%emt 0:00:04]} Nc6 {[%emt 0:00:05]} 9. Qd2 {[%emt 0:00:04]} Bd7 {[%emt 0:00:16]} 10. O-O-O {[%emt 0:00:11]} Nxd4 {[%emt 0:02:27]} 11. Bxd4 {[%emt 0:00:25]} Rc8 {[%emt 0:00:05]} 12. Bb3 {[%emt 0:00:26]} b5 {[%emt 0:00:11]} 13. Nd5 {[%emt 0:04:39]} Nxd5 {[%emt 0:02:03]} 14. Bxg7 {[%emt 0:00:16]} Kxg7 {[%emt 0:00:39]} 15. exd5 {[%emt 0:00:04]} a5 {[%emt 0:00:40]} 16. a3 {[%emt 0:07:46]} Qb6 {[%emt 0:38:59]} 17. h4 {[%emt 0:06:22]} a4 {[%emt 0:00:22]} 18. Ba2 {[%emt 0:00:33]} Rxc2+ {[%emt 0:01:41]} 19. Qxc2 {[%emt 0:12:18]} Rc8 {[%emt 0:00:12]} 20. Qxc8 {[%emt 0:03:03]} Bxc8 {[%emt 0:00:02]} 21. Rd2 {[%emt 0:04:32]} b4 {[%emt 0:01:48]} 22. axb4 {[%emt 0:03:17]} Qxb4 {[%emt 0:00:11]} 23. Rc2 {[%emt 0:01:39]} Qf4+ {[%emt 0:00:15]} 24. Kd1 {[%emt 0:02:19]} Ba6 {[%emt 0:02:47]} 25. h5 {[%emt 0:23:52]} a3 {[%emt 0:01:14]} 26. hxg6 {[%emt 0:05:34]} hxg6 {[%emt 0:00:16]} 27. bxa3 {[%emt 0:06:58]} Qd4+ {[%emt 0:00:14]} 28. Kc1 {[%emt 0:00:10]} Qa1+ {[%emt 0:01:25]} 29. Bb1 {[%emt 0:00:05]} Bd3 {[%emt 0:01:39]} 30. Rb2 {[%emt 0:00:42]} Bxb1 {[%emt 0:00:14]} 31. Rxb1 {[%emt 0:00:07]} Qc3+ {[%emt 0:00:05]} 32. Kd1 {[%emt 0:00:10]} Qd3+ {[%emt 0:00:04]} 33. Kc1 {[%emt 0:00:16]} Qxa3+ {[%emt 0:00:04]} 34. Kc2 {[%emt 0:03:07]} Qc5+ {[%emt 0:00:07]} 35. Kb2 {[%emt 0:00:16]} Qd4+ {[%emt 0:00:22]} 36. Kc1 {[%emt 0:01:35]} Qxd5 {[%emt 0:00:17]} 37. Rd1 {[%emt 0:00:12]} Qc5+ {[%emt 0:00:06]} 38. Kb2 {[%emt 0:00:52]} Qf2+ {[%emt 0:00:07]} 39. Kc1 {[%emt 0:00:44]} Qxg2 {[%emt 0:00:06]} 40. Rb3 {[%emt 0:00:51]} Qg5+ {[%emt 0:00:41]} 41. Kc2 {[%emt 0:00:14]} d5 {[%emt 0:00:12]} 42. Rbd3 {[%emt 0:00:13]} d4 {[%emt 0:00:27]} 43. Rxd4 {[%emt 0:00:18]} Qg2+ {[%emt 0:00:07]} 44. R1d2 {[%emt 0:00:13]} Qxf3 {[%emt 0:00:10]} 45. R4d3 {[%emt 0:00:08]} Qf5 {[%emt 0:00:07]} 46. Kc3 {[%emt 0:00:17]} g5 {[%emt 0:00:07]} 47. Rd5 {[%emt 0:00:07]} e5 {[%emt 0:00:11]} 48. Kc4 {[%emt 0:01:28]} Qf4+ {[%emt 0:00:49]} 49. Kc3 {[%emt 0:00:14]} g4 {[%emt 0:00:13]} 50. R5d3 {[%emt 0:00:49]} e4 {[%emt 0:00:29]} 51. Rd4 {[%emt 0:00:08]} Qf3+ {[%emt 0:00:07]} 52. Kc2 {[%emt 0:00:05]} g3 {[%emt 0:00:14]} 53. Rd5 {[%emt 0:00:29]} e3 {[%emt 0:01:36]} 54. R2d3 {[%emt 0:00:20]} Qf2+ {[%emt 0:00:41]} 55. Kc3 {[%emt 0:00:40]} g2 {[%emt 0:00:20]} 56. Rg5+ {[%emt 0:00:08]} Kh6 {[%emt 0:00:14]} 57. Rxg2 {[%emt 0:00:18]} Qxg2 {[%emt 0:00:10]} 58. Rxe3 {[%emt 0:00:02]} Kg6 {[%emt 0:00:24]} 59. Kd4 {[%emt 0:00:10]} Qd2+ {[%emt 0:00:05]} 60. Rd3 {[%emt 0:00:07]} Qf4+ {[%emt 0:00:06]} 61. Kc3 {[%emt 0:00:04]} f5 {[%emt 0:00:07]} 62. Rd4 {[%emt 0:00:04]} Qe3+ {[%emt 0:00:05]} 63. Rd3 {[%emt 0:00:04]} Qc1+ {[%emt 0:00:05]} 64. Kd4 {[%emt 0:00:06]} Qe1 {[%emt 0:00:10]} 65. Re3 {[%emt 0:00:06]} Qb4+ {[%emt 0:00:05]} 66. Kd3 {[%emt 0:00:17]} f4 {[%emt 0:00:08]} 67. Re4 {[%emt 0:00:06]} Qb3+ {[%emt 0:00:06]} 68. Ke2 {[%emt 0:00:13]} Kf5 {[%emt 0:00:03]} 69. Rd4 {[%emt 0:00:24]} Qe3+ {[%emt 0:00:05]} 70. Kf1 {[%emt 0:00:10]} Qxd4 {[%emt 0:00:05]} 71. Ke2 {[%emt 0:00:04]} Qc3 {[%emt 0:00:04]} 72. Kf2 {[%emt 0:00:03]} Qe3+ {[%emt 0:00:05]} 73. Kg2 {[%emt 0:00:08]} Kg4 {[%emt 0:00:02]} 74. Kf1 {[%emt 0:00:03]} Qd2 {[%emt 0:00:04]} 75. Kg1 {[%emt 0:00:04]} Kg3 {[%emt 0:00:06]} 76. Kh1 {[%emt 0:00:01]} Qh2# {[%emt 0:00:08]} 0-1